fUSD/lending_fUSD_20250806
["ID","MTS","AMOUNT","RATE_DAILY","PERIOD"]
[377713847,1754505032781,-6328.05,0.00034403,2]
[377713848,1754505032792,-203.63,0.00034418,2]
[377713849,1754505032801,-789.01643703,0.00034465,2]
[377713850,1754505032811,-150.0,0.00034471,7]
[377713851,1754505032820,-150.0,0.00034545,7]
[377713852,1754505032830,-1000.0,0.00034587,2]
[377713853,1754505032840,-150.0,0.00034619,7]
[377713854,1754505032851,-862.17027888,0.00034659,2]
[377713855,1754505032863,-150.0,0.00034693,7]
[377713856,1754505032873,-150.0,0.00034767,7]
[377713857,1754505032883,-2000.0,0.000348,2]
[377713858,1754505032893,-150.0,0.00034841,7]
[377713859,1754505032905,-935.32412072,0.00034854,2]
[377713860,1754505032916,-152.0,0.00034887,3]
[377713861,1754505032926,-150.0,0.00034915,7]
[377713862,1754505032936,-264.47,0.00034952,30]
[377713863,1754505032945,-23900.0,0.00034954,2]
[377713864,1754505032955,-1836.98,0.00034977,2]
[377713865,1754505032966,-150.0,0.00034989,7]
[377713866,1754505032975,-1008.47796257,0.00035048,2]
[377713867,1754505032985,-150.0,0.00035063,7]
[377713868,1754505032994,-150.0,0.00035137,7]
[377713869,1754505033004,-200.0,0.0003514,2]
[377713870,1754505033014,-200.0,0.00035161,2]
[377713871,1754505033024,-150.0,0.00035211,7]
[377713872,1754505033034,-1081.63180441,0.00035242,2]
[377713873,1754505033045,-339.78,0.00035259,2]
[377713874,1754505033055,-150.0,0.00035285,7]
[377713875,1754505033065,-150.0,0.00035359,7]
[377713876,1754505033074,-150.0,0.00035433,7]
[377713877,1754505033084,-1154.78564626,0.00035436,2]
[377713878,1754505033094,-150.0,0.00035507,7]
[377713879,1754505033106,-150.0,0.00035581,7]
[377713880,1754505033116,-1227.9394881,0.00035631,2]
[377713881,1754505033127,-150.0,0.00035655,7]
[377713882,1754505033137,-1003.89,0.00035717,2]
[377713883,1754505033148,-150.0,0.00035729,7]
[377713884,1754505033158,-1003.89,0.00035736,2]
[377713885,1754505033168,-1003.89,0.00035754,2]
[377713886,1754505033178,-1003.89,0.00035773,2]
[377713887,1754505033188,-1003.89,0.00035792,2]
[377713888,1754505033197,-150.0,0.00035803,7]
[377713889,1754505033208,-1003.89,0.00035811,2]
[377713890,1754505033221,-194.2,0.00035822,2]
[377713891,1754505033231,-500.0,0.00035822,2]
[377713892,1754505033241,-503.0,0.00035822,2]
[377713893,1754505033253,-1301.09332994,0.00035825,2]
[377713894,1754505033264,-1003.89,0.0003583,2]
[377713895,1754505033274,-150.0,0.0003583,2]
[377713896,1754505033284,-150.0,0.0003583,2]
[377713897,1754505033294,-150.0,0.0003583,2]
[377713898,1754505033304,-150.0,0.0003583,2]
[377713899,1754505033314,-150.0,0.0003583,2]
[377713900,1754505033323,-150.0,0.0003583,2]
[377713901,1754505033333,-150.0,0.0003583,2]
[377713902,1754505033343,-150.0,0.0003583,2]
[377713903,1754505033352,-150.0,0.0003583,2]
[377713904,1754505033362,-150.0,0.0003583,2]
[377713905,1754505033372,-1003.89,0.00035848,2]
[377713906,1754505033381,-1003.89,0.00035867,2]
[377713907,1754505033391,-150.0,0.00035877,7]
[377713908,1754505033401,-1003.89,0.00035886,2]
[377713909,1754505033410,-1003.89,0.00035905,2]
[377713910,1754505033419,-211.52696026,0.00035922,2]
[377713911,1754505033429,-160.0,0.00035923,2]
[377713912,1754505033439,-457.43778519,0.00035923,2]
[377713913,1754505033449,-1003.89,0.00035924,2]
[377713914,1754505033459,-1003.89,0.00035942,2]
[377713915,1754505033468,-150.0,0.00035951,7]
[377713916,1754505033477,-1003.89,0.00035961,2]
[377713917,1754505033487,-1003.89,0.0003598,2]
[377713918,1754505033497,-1003.89,0.00035999,2]
[377713919,1754505033507,-8649.65706277,0.00036,2]
[377713920,1754505033517,-2466.60582329,0.00036,2]
[377713921,1754505033527,-1003.89,0.00036018,2]
[377713922,1754505033537,-1374.24717179,0.00036019,2]
[377713923,1754505033548,-150.0,0.00036025,7]
[377713924,1754505033558,-500.0,0.0003603,2]
[377713925,1754505033568,-500.0,0.0003603,2]
[377713926,1754505033578,-428.59505164,0.0003603,2]
[377713927,1754505033588,-1003.89,0.00036036,2]
[377713928,1754505033599,-1003.89,0.00036055,2]
[377713929,1754505033608,-1003.89,0.00036074,2]
[377713930,1754505033618,-500.0,0.00036096,2]
[377713931,1754505033628,-503.0,0.00036096,2]
[377713932,1754505033637,-150.0,0.00036099,7]
[377713933,1754505033647,-150.0,0.00036104,2]
[377713934,1754505033657,-150.0,0.00036104,2]
[377713935,1754505033667,-150.0,0.00036104,2]
[377713936,1754505033677,-150.0,0.00036104,2]
[377713937,1754505033687,-150.0,0.00036104,2]
[377713938,1754505033698,-285.0,0.00036104,2]
[377713939,1754505033707,-150.0,0.00036104,2]
[377713940,1754505033722,-158.55,0.00036115,2]
[377713941,1754505033732,-150.0,0.00036173,7]
[377713942,1754505033742,-237.51,0.00036177,2]
[377713943,1754505033753,-1447.40101363,0.00036213,2]
[377713944,1754505033764,-150.0,0.00036247,7]
[377713945,1754505033774,-3285.69283151,0.000363,2]
[377713946,1754505033785,-900.0,0.000363,13]
[377713947,1754505033795,-150.0,0.00036321,7]
[377713948,1754505033805,-150.0,0.00036332,2]
[377713949,1754505033816,-3285.69283143,0.00036367,2]
[377713950,1754505033825,-500.0,0.0003637,2]
[377713951,1754505033836,-503.0,0.0003637,2]
[377713952,1754505033846,-200.0,0.00036378,2]
[377713953,1754505033857,-200.0,0.00036378,2]
[377713954,1754505033867,-200.0,0.00036378,2]
[377713955,1754505033877,-200.0,0.00036378,2]
[377713956,1754505033887,-150.0,0.00036378,2]
[377713957,1754505033898,-150.0,0.00036378,2]
[377713958,1754505033908,-150.0,0.00036385,2]
[377713959,1754505033919,-150.0,0.00036395,7]
[377713960,1754505034066,-500.0,0.000364,120]
[377713961,1754505034076,-150.0,0.000364,13]
[377713962,1754505034086,-500.0,0.000364,13]
[377713963,1754505034096,-153.18887779,0.000364,13]
[377713964,1754505034106,-150.0,0.000364,13]
[377713965,1754505034117,-1900.0,0.000364,13]
[377713966,1754505034128,-1520.55485548,0.00036407,2]
[377713967,1754505034138,-3285.69283143,0.00036433,2]
[377713968,1754505034147,-150.0,0.00036468,7]
[377713969,1754505034157,-850.7241647,0.00036469,2]
[377713970,1754505034167,-3285.69283143,0.000365,2]
[377713971,1754505034177,-557.0,0.000365,2]
[377713972,1754505034187,-2800.0,0.000365,13]
[377713973,1754505034197,-150.0,0.00036542,7]
[377713974,1754505034213,-3285.69283143,0.00036567,2]
[377713975,1754505034223,-150.0,0.00036583,2]
[377713976,1754505034232,-1958.83,0.0003659,2]
[377713977,1754505034242,-75771.1329669,0.000366,2]
[377713978,1754505034253,-3800.0,0.000366,13]
[377713979,1754505034262,-1593.70869732,0.00036602,2]
[377713980,1754505034271,-150.0,0.00036616,7]
[377713981,1754505034280,-3285.69283143,0.00036633,2]
[377713982,1754505034291,-500.0,0.00036644,2]
[377713983,1754505034301,-503.0,0.00036644,2]
[377713984,1754505034311,-200.0,0.00036652,2]
[377713985,1754505034321,-150.0,0.00036652,2]
[377713986,1754505034331,-500.0,0.00036674,120]
[377713987,1754505034341,-150.0,0.00036674,13]
[377713988,1754505034352,-500.0,0.00036674,13]
[377713989,1754505034362,-205.16083841,0.00036674,13]
[377713990,1754505034371,-254.59740217,0.0003669,2]
[377713991,1754505034381,-151.0,0.0003669,7]
[377713992,1754505034390,-151.0,0.0003669,7]
[377713993,1754505034400,-151.0,0.0003669,7]
[377713994,1754505034409,-151.0,0.0003669,7]
[377713995,1754505034419,-150.0,0.0003669,7]
[377713996,1754505034428,-3285.69283143,0.000367,2]
[377713997,1754505034437,-4700.0,0.000367,13]
[377713998,1754505034447,-17133.76,0.000367,12]
[377713999,1754505034456,-237.51,0.000367,2]
[377714000,1754505034466,-254.59740213,0.00036713,2]
[377714001,1754505034475,-254.59740213,0.00036737,2]
[377714002,1754505034484,-254.59740213,0.0003676,2]
[377714003,1754505034494,-150.0,0.00036764,7]
[377714004,1754505034503,-3285.69283143,0.00036767,2]
[377714005,1754505034512,-40921.22772887,0.0003678,4]
[377714006,1754505034531,-1755.46621783,0.0003678,4]
[377714007,1754505034540,-5000.0,0.0003678,2]
[377714008,1754505034550,-254.59740213,0.00036783,2]
[377714009,1754505034560,-581.37,0.00036789,5]
[377714010,1754505034569,-20992.83675626,0.0003679,2]
[377714011,1754505034580,-2143.09254956,0.0003679,2]
[377714012,1754505034591,-14032.38904062,0.0003679,2]
[377714013,1754505034625,-1000.0,0.0003679,2]
[377714014,1754505034810,-157.60704603,0.000249,2]
[377714015,1754505034820,-500.0,0.00035822,2]
[377714016,1754505034830,-9435.21685993,0.0003679,2]
[377714017,1754505034866,-15213.74170275,0.0003679,2]
[377714018,1754505034886,-8693.6457264,0.0003679,2]
[377714021,1754505037916,-888.912,0.00029401,3]
[377714022,1754505037932,-999.088,0.00029401,3]
[377714023,1754505037944,-157.60704603,0.000309,2]
[377714024,1754505037955,-3776.0,0.00031641,3]
[377714025,1754505037965,-500.0,0.00036096,2]
[377714026,1754505037975,-1888.0,0.00036311,3]
[377714027,1754505037984,-500.0,0.0003637,2]
[377714028,1754505037994,-243.2447371,0.00036644,2]
[377714029,1754505038003,-52117.17596448,0.0003679,2]
[377714030,1754505038013,-1000.0,0.0003679,2]
[377714031,1754505038021,-1939.84972485,0.0003679,4]
[377714032,1754505038030,-158.358971,0.0003679,7]
[377714033,1754505038039,-295.26018,0.0003679,7]
[377714034,1754505038049,-1666.86253917,0.00036796,2]
[377714035,1754505038058,-1000.0,0.000368,9]
[377714036,1754505038067,-1000.0,0.000368,8]
[377714037,1754505038076,-1000.0,0.000368,7]
[377714038,1754505038086,-1000.0,0.000368,7]
[377714039,1754505038095,-185.92455886,0.000368,2]
[377714040,1754505038105,-900.0,0.000368,13]
[377714041,1754505038114,-254.59740213,0.00036807,2]
[377714042,1754505038123,-254.59740213,0.0003683,2]
[377714043,1754505038132,-3285.69283143,0.00036833,2]
[377714044,1754505038141,-150.0,0.00036838,7]
[377714045,1754505038150,-254.59740213,0.00036853,2]
[377714046,1754505038159,-1939.84972485,0.0003686,4]
[377714047,1754505038168,-151.16,0.0003686,2]
[377714048,1754505038177,-205.28805265,0.0003686,2]
[377714049,1754505038186,-14704.09801636,0.0003687,4]
[377714050,1754505038197,-814.69978244,0.0003687,4]
[377714051,1754505038209,-3771.51686915,0.0003687,2]
[377714052,1754505038241,-155.37397305,0.00034877,15]
[377714053,1754505038254,-697.81308618,0.0003687,2]
[377714054,1754505038266,-417.89133502,0.0003687,2]
[377714056,1754505038338,-2005.6021978,0.0003687,2]
[377714057,1754505038350,-2178.41809346,0.0003687,2]
[377714058,1754505038365,-782.97189131,0.0003687,2]
[377714059,1754505038381,-1037.1750148,0.0003687,2]
[377714090,1754505040677,-1888.0,0.00029901,3]
[377714091,1754505040687,-3776.0,0.00032141,3]
[377714092,1754505040696,-150.0,0.00035822,120]
[377714093,1754505040705,-150.0,0.00036096,120]
[377714094,1754505040715,-150.0,0.0003637,120]
[377714095,1754505040724,-150.0,0.00036644,120]
[377714096,1754505040733,-201789.11358821,0.0003687,2]
[377714097,1754505041461,-1272.49565681,0.0003687,2]
[377714098,1754505041473,-337.62,0.0003687,2]
[377714099,1754505041487,-291.075,0.0003687,2]
[377714100,1754505041499,-17933.7299,0.0003687,2]
[377714101,1754505041623,-1466.43173063,0.0003687,2]
[377714124,1754505043078,-1888.0,0.00030401,3]
[377714126,1754505043088,-3666.62096,0.00032641,3]
[377714135,1754505046153,-755.14066724,0.00030901,3]
[377714136,1754505046233,-1132.85933276,0.00030901,3]
[377714137,1754505046243,-109.37904,0.00032641,3]
[377714138,1754505046255,-1545.56789651,0.00033141,3]
[377714139,1754505046267,-2230.43210349,0.00033141,3]
[377714140,1754505046278,-150.0,0.00035822,2]
[377714141,1754505046288,-150.0,0.00036096,2]
[377714142,1754505046299,-150.0,0.0003637,2]
[377714143,1754505046309,-150.0,0.00036644,2]
[377714144,1754505046318,-1639.37809051,0.0003687,2]
[377714158,1754505123624,300.0,0.00020899,120]
[377714161,1754505536662,250.0,0.00015,2]
[377714162,1754505537714,300.0,0.00017,2]
[377714163,1754505622340,180.55,0.00016712,2]
[377714168,1754505755474,184.03,0.00013699,2]
[377714195,1754506229131,2071.17,4.2e-05,2]
[377714196,1754506229590,2071.17,4.328e-05,2]
[377714197,1754506229845,2071.17,4.456e-05,2]
[377714198,1754506230126,2071.17,4.584e-05,2]
[377714199,1754506230398,383.37869939,4.712e-05,2]
[377714200,1754506230428,1687.79130061,4.712e-05,2]
[377714208,1754506232122,-350.0,0.00019,2]
[377714209,1754506232134,-500.0,0.0001937,2]
[377714210,1754506232146,-42.29370487,0.00019562,2]
[377714212,1754506232176,-457.70629513,0.00019562,2]
[377714213,1754506232187,-184.03,0.00020187,2]
[377714214,1754506232198,-500.0,0.000209,2]
[377714215,1754506232210,-1000.0,0.000209,4]
[377714216,1754506232221,-500.0,0.000209,2]
[377714217,1754506232232,-400.0,0.00021,2]
[377714218,1754506232244,-450.0,0.00023,2]
[377714233,1754506233050,-2560.13046913,0.000249,2]
[377714234,1754506233079,-184.03,0.00026676,2]
[377714235,1754506233107,-506.75,0.00027921,2]
[377714236,1754506233120,-2560.13046891,0.0002921,11]
[377714237,1754506233130,-153.31,0.0003005,2]
[377714238,1754506233139,-842.03384774,0.00031424,2]
[377714239,1754506233150,-153.31,0.00031877,2]
[377714240,1754506233160,-184.03,0.00033165,2]
[377714241,1754506233169,-150.0,0.00033288,7]
[377714242,1754506233179,-150.0,0.00033288,7]
[377714243,1754506233189,-150.0,0.000333,2]
[377714244,1754506233199,-624.45510309,0.00033494,2]
[377714245,1754506233209,-2560.13046891,0.00033521,20]
[377714246,1754506233219,-732.38561473,0.00033688,2]
[377714247,1754506233229,-153.31,0.00033703,2]
[377714248,1754506233238,-840.31612638,0.00033883,2]
[377714249,1754506233248,-200.0,0.00034,30]
[377714250,1754506233257,-948.24663802,0.00034077,2]
[377714251,1754506233267,-1056.17714966,0.00034271,2]
[377714252,1754506233277,-1164.10766131,0.00034465,2]
[377714253,1754506233287,-1000.0,0.00034582,2]
[377714254,1754506233296,-203.86,0.00034605,2]
[377714255,1754506233306,-1272.03817295,0.00034659,2]
[377714256,1754506233316,-1187.0,0.000348,2]
[377714257,1754506233326,-1379.9686846,0.00034854,2]
[377714258,1754506233336,-1487.89919624,0.00035048,2]
[377714259,1754506233345,-363.69,0.00035076,2]
[377714260,1754506233355,-1595.82970789,0.00035242,2]
[377714261,1754506233364,-1593.09,0.00035327,2]
[377714262,1754506233374,-1703.76021953,0.00035436,2]
[377714263,1754506233385,-153.31,0.0003553,2]
[377714264,1754506233395,-401.279,0.0003553,42]
[377714265,1754506233404,-1811.69073118,0.00035631,2]
[377714266,1754506233414,-250.0,0.00035637,2]
[377714267,1754506233424,-150.0,0.00035719,2]
[377714268,1754506233434,-18191.6,0.0003579,2]
[377714269,1754506233444,-203.0,0.0003581,2]
[377714270,1754506233454,-1919.62124282,0.00035825,2]
[377714271,1754506233464,-512.0,0.00035838,2]
[377714272,1754506233473,-238.02,0.00035972,30]
[377714273,1754506233484,-2027.55175447,0.00036019,2]
[377714274,1754506233494,-500.0,0.00036082,2]
[377714275,1754506233504,-2135.48226611,0.00036213,2]
[377714276,1754506233514,-602.16,0.00036275,30]
[377714277,1754506233524,-589.62,0.00036275,30]
[377714278,1754506233534,-600.0,0.000363,13]
[377714279,1754506233544,-203.86,0.00036335,2]
[377714280,1754506233554,-596.1,0.00036374,30]
[377714281,1754506233563,-535.0,0.000364,2]
[377714282,1754506233573,-1200.0,0.000364,13]
[377714283,1754506233587,-359.57656357,0.00036406,2]
[377714284,1754506233597,-2243.41277775,0.00036407,2]
[377714285,1754506233607,-150.0,0.00036489,2]
[377714286,1754506233617,-230.85,0.00036489,2]
[377714287,1754506233628,-1800.0,0.000365,13]
[377714288,1754506233639,-203.0,0.0003651,2]
[377714289,1754506233649,-2400.0,0.000366,13]
[377714290,1754506233658,-2351.3432894,0.00036602,2]
[377714291,1754506233671,-151.0,0.0003669,7]
[377714292,1754506233680,-151.0,0.0003669,7]
[377714293,1754506233690,-3000.0,0.000367,13]
[377714294,1754506233699,-152.74582464,0.0003677,2]
[377714295,1754506233709,-6900.30209557,0.0003677,2]
[377714296,1754506233719,-159.79523265,0.0003677,15]
[377714297,1754506233729,-1000.0,0.0003677,2]
[377714298,1754506233739,-2500.0,0.0003677,2]
[377714299,1754506233748,-5000.0,0.0003677,2]
[377714300,1754506233759,-205.5495666,0.00036784,2]
[377714301,1754506233769,-150.0,0.00036784,2]
[377714302,1754506233780,-150.0,0.00036784,2]
[377714303,1754506233790,-6900.30209553,0.00036784,2]
[377714304,1754506233800,-151.0,0.0003679,7]
[377714305,1754506233811,-151.0,0.0003679,7]
[377714306,1754506233821,-185.92455886,0.00036793,2]
[377714307,1754506233830,-2459.27380104,0.00036796,2]
[377714308,1754506233840,-6900.30209553,0.00036799,2]
[377714309,1754506233850,-150.0,0.000368,13]
[377714310,1754506233860,-419.0,0.000368,2]
[377714311,1754506233869,-150.0,0.000368,120]
[377714312,1754506233881,-150.0,0.000368,13]
[377714313,1754506233890,-600.0,0.000368,13]
[377714314,1754506233900,-150.0,0.000368,13]
[377714315,1754506233910,-6900.30209553,0.00036813,2]
[377714316,1754506233920,-6900.30209553,0.00036828,2]
[377714317,1754506233929,-152.74582462,0.00036835,2]
[377714318,1754506233939,-500.0,0.00036841,15]
[377714319,1754506233949,-500.0,0.00036841,15]
[377714320,1754506233958,-538.54977786,0.00036841,15]
[377714321,1754506233968,-500.0,0.00036841,15]
[377714322,1754506233977,-500.0,0.00036841,15]
[377714323,1754506233986,-645.97939171,0.00036841,15]
[377714324,1754506233996,-500.0,0.00036841,15]
[377714325,1754506234005,-500.0,0.00036841,15]
[377714326,1754506234015,-500.0,0.00036841,15]
[377714327,1754506234024,-6900.30209553,0.00036842,2]
[377714328,1754506234034,-6900.30209553,0.00036857,2]
[377714329,1754506234043,-5400.2833914,0.00036868,2]
[377714330,1754506234053,-3151.7759495,0.00036868,2]
[377714331,1754506234064,-2992.7904866,0.00036868,2]
[377714332,1754506234073,-1050.3052954,0.00036869,30]
[377714333,1754506234083,-215.14,0.00036869,2]
[377714334,1754506234093,-1451.39,0.00036869,2]
[377714335,1754506234103,-1451.39,0.00036869,2]
[377714336,1754506234112,-1451.39,0.00036869,2]
[377714337,1754506234122,-1451.39,0.00036869,2]
[377714338,1754506234134,-1451.39,0.00036869,2]
[377714339,1754506234144,-1451.39,0.00036869,2]
[377714340,1754506234154,-600.0,0.00036869,4]
[377714341,1754506234164,-600.0,0.00036869,4]
[377714342,1754506234174,-586.00997006,0.00036869,4]
[377714343,1754506234184,-500.0,0.00036869,4]
[377714344,1754506234193,-500.0,0.00036869,4]
[377714345,1754506234203,-500.0,0.00036869,4]
[377714346,1754506234212,-300.0,0.00036869,4]
[377714347,1754506234222,-500.0,0.00036869,4]
[377714348,1754506234231,-500.0,0.00036869,4]
[377714349,1754506234240,-300.0,0.00036869,4]
[377714350,1754506234250,-500.0,0.00036869,4]
[377714351,1754506234260,-219.39550193,0.00036869,4]
[377714352,1754506234269,-500.0,0.00036869,4]
[377714353,1754506234278,-500.0,0.00036869,4]
[377714354,1754506234287,-500.0,0.00036869,4]
[377714355,1754506234297,-500.0,0.00036869,4]
[377714356,1754506234307,-500.0,0.00036869,4]
[377714357,1754506234316,-500.0,0.00036869,4]
[377714358,1754506234326,-500.0,0.00036869,4]
[377714359,1754506234335,-159.7148719,0.00036869,4]
[377714360,1754506234345,-557.15,0.00036869,5]
[377714361,1754506234355,-73622.71665421,0.0003687,2]
[377714362,1754506234977,-262838.12592108,0.0003687,2]
[377714363,1754506234991,-636.20653396,0.0003687,2]
[377714364,1754506235002,-404.3286,0.0003687,2]
[377714365,1754506235014,-161505.73916712,0.0003687,2]
[377714366,1754506235025,-200.0,0.0003687,2]
[377714367,1754506235116,-151.0,0.0003687,2]
[377714368,1754506235126,-200.0,0.0003687,2]
[377714369,1754506235136,-151.0,0.0003687,2]
[377714370,1754506235145,-6900.30209553,0.00036871,2]
[377714371,1754506235155,-1451.39,0.00036879,2]
[377714372,1754506235164,-233662.0,0.0003688,120]
[377714373,1754506235174,-151.0,0.0003688,7]
[377714374,1754506235183,-151.0,0.0003688,7]
[377714375,1754506235192,-151.0,0.0003688,7]
[377714376,1754506235201,-151.0,0.0003688,7]
[377714377,1754506235210,-6900.30209553,0.00036886,2]
[377714378,1754506235220,-1114.64550162,0.00036893,2]
[377714379,1754506235229,-151.0,0.00036893,7]
[377714380,1754506235238,-300.285469,0.00036893,7]
[377714381,1754506235247,-151.0,0.00036893,7]
[377714382,1754506235257,-151.0,0.00036893,7]
[377714383,1754506235266,-266.12972,0.00036893,7]
[377714384,1754506235275,-151.0,0.00036893,7]
[377714385,1754506235284,-1524.13551084,0.00036899,30]
[377714386,1754506235293,-400.0,0.00036899,2]
[377714387,1754506235303,-150.0,0.00036899,15]
[377714388,1754506235312,-15024.7119753,0.000369,2]
[377714389,1754506235320,-466.10287743,0.000369,2]
[377714390,1754506235330,-151.0,0.000369,7]
[377714391,1754506235339,-222.18502,0.000369,7]
[377714392,1754506235348,-165.799609,0.000369,7]
[377714393,1754506235357,-262.411664,0.000369,7]
[377714394,1754506235367,-152.74582462,0.000369,2]
[377714395,1754506235376,-199.19685127,0.000369,2]
[377714396,1754506235386,-600.0,0.000369,13]
[377714397,1754506235396,-6900.30209553,0.000369,2]
[377714398,1754506235405,-234.09333311,0.000369,2]
[377714399,1754506235414,-3806.6011168,0.000369,2]
[377714400,1754506235423,-151.16,0.00036903,2]
[377714401,1754506235432,-205.28805266,0.00036903,2]
[377714402,1754506235441,-300.0,0.00036912,10]
[377714403,1754506235450,-17273.47202065,0.00036913,2]
[377714404,1754506235478,-9818.61843473,0.00036913,2]
[377714405,1754506235489,-1455.78504713,0.00036913,2]
[377714406,1754506235500,-52504.32705452,0.00036913,2]
[377714407,1754506235511,-2660.15703243,0.00036913,2]
[377714408,1754506235521,-5111.5,0.00036913,2]
[377714409,1754506235544,-480.55385569,0.00036913,2]
[377714410,1754506235570,-44761.34982637,0.00036913,2]
[377714411,1754506235584,-8123.83753712,0.00036913,2]
[377714412,1754506235595,-525.12168584,0.00036913,2]
[377714413,1754506235620,-12859.16617854,0.00036913,2]
[377714414,1754506235634,-1000.0,0.00036913,2]
[377714415,1754506235645,-2047.45009887,0.00036913,2]
[377714416,1754506235655,-860.7483847,0.00036913,2]
[377714417,1754506235667,-10419.72624803,0.00036913,2]
[377714418,1754506237992,-1888.0,0.00028421,3]
[377714419,1754506238002,-3776.0,0.00030661,3]
[377714420,1754506238012,-151.0,0.00036879,2]
[377714421,1754506238021,-151.0,0.000369,2]
[377714422,1754506238030,-216.04244567,0.00036903,2]
[377714423,1754506238039,-7018.21013576,0.00036913,2]
[377714424,1754506238051,-1935.34111815,0.00036913,2]
[377714425,1754506238062,-921.249072,0.00036913,2]
[377714426,1754506238074,-1067.80980254,0.00036913,2]
[377714427,1754506238085,-1240.07,0.00036913,2]
[377714428,1754506238107,-9259.89110726,0.00036913,2]
[377714429,1754506238118,-53611.24601912,0.00036913,2]
[377714430,1754506238128,-1042.45575235,0.00036913,2]
[377714431,1754506238163,-6889.39539489,0.00036913,2]
[377714432,1754506238174,-1636.77954843,0.00036913,2]
[377714433,1754506238187,-740.14199999,0.00036913,2]
[377714605,1754506240166,-1688.41035636,0.00028921,3]
[377714607,1754506240177,-199.58964364,0.00028921,3]
[377714609,1754506240186,-654.27958211,0.00031161,3]
[377714629,1754506240429,-691.02941632,0.00029421,3]
[377714858,1754506243165,-1196.97058368,0.00029421,3]
[377714860,1754506243175,-832.95077504,0.00031161,3]
[377714892,1754506243481,-1888.0,0.00029921,3]
[377714894,1754506243490,-2258.95912565,0.00031161,3]
[377715199,1754506246568,-29.8105172,0.00031161,3]
[377715201,1754506246581,-928.2095068,0.00031661,3]
[377715206,1754506246624,-2847.7904932,0.00031661,3]
[377715208,1754506246634,-928.5637468,0.00032161,3]
[377715347,1754506443292,500.0,0.00027093,120]
[377715348,1754506443392,500.0,0.00028146,120]
[377715349,1754506538052,180.55,0.00016712,2]
[377715353,1754506666292,279.20740582,0.0003013,120]
[377715354,1754506668236,1227.0,0.0003013,120]
[377715355,1754506678459,343.0,0.0003013,120]
[377715356,1754506690487,163.51,0.00013699,2]
[377715362,1754506714886,150.28866457,0.00030137,120]
[377715363,1754506728300,1867.55728743,0.0003013,120]
[377715364,1754506730820,309.0,0.0003013,120]
[377715365,1754506803222,686.76959791,0.00030137,120]
[377715393,1754507324916,912.0,0.0003013,120]
[377715394,1754507327380,388.0,0.0003013,120]
[377715395,1754507343332,150.0,0.00015,2]
[377715396,1754507343357,100.0,0.00015,2]
[377715406,1754507432355,-278.39362494,0.00020075,2]
[377715407,1754507432365,-300.0,0.00020087,2]
[377715408,1754507432374,-8.1343727,0.00020087,2]
[377715409,1754507432385,-291.8656273,0.00020087,2]
[377715410,1754507432395,-494.42622387,0.00020087,2]
[377715411,1754507432406,-5.57377613,0.00020087,2]
[377715412,1754507432418,-1000.0,0.000201,4]
[377715413,1754507432428,-300.0,0.00020124,2]
[377715414,1754507432439,-300.0,0.00020124,2]
[377715415,1754507432449,-500.0,0.00020124,2]
[377715416,1754507432458,-137.47935429,0.00020125,2]
[377715417,1754507432488,-362.52064571,0.00020125,2]
[377715418,1754507432498,-1000.0,0.00020147,4]
[377715419,1754507432507,-1000.0,0.00020175,4]
[377715420,1754507432516,-137.13966874,0.00020175,2]
[377715421,1754507432535,-162.86033126,0.00020175,2]
[377715422,1754507432544,-300.0,0.00020175,2]